bitfinex-derivatives/quotes_BTCF0:USTF0_20250709
["timestamp","ask_amount","ask_price","bid_price","bid_amount"]
[1752032714763,1.51040782,108460.0,108450.0,0.12453914]
[1752032715058,1.76281962,108460.0,108450.0,0.04154314]
[1752032715860,1.51040782,108460.0,108450.0,0.04154314]
[1752032719765,1.51040782,108460.0,108450.0,0.15222555]
[1752032721366,1.51040782,108460.0,108450.0,0.04154314]
[1752032723066,1.76281962,108460.0,108450.0,0.04154314]
[1752032723566,1.51040782,108460.0,108450.0,0.04154314]
[1752032723760,1.0863513,108460.0,108450.0,0.04154314]
[1752032723965,1.7138313,108460.0,108450.0,0.04154314]
[1752032726266,1.7138313,108460.0,108450.0,0.15222555]
[1752032728166,1.7138313,108460.0,108450.0,0.16663929]
[1752032728674,1.7139113,108460.0,108450.0,0.16663929]
[1752032729666,1.7139113,108460.0,108450.0,0.13894642]
[1752032731366,1.7139113,108460.0,108450.0,0.05595688]
[1752032731566,1.7139113,108460.0,108450.0,0.16663929]
[1752032731766,1.7139113,108460.0,108450.0,0.05595688]
[1752032732166,1.7139113,108460.0,108450.0,0.16663929]
[1752032732568,1.7139113,108460.0,108450.0,0.05595688]
[1752032733773,1.9663231,108460.0,108450.0,0.05595688]
[1752032735675,1.2090877,108460.0,108450.0,0.05595688]
[1752032735871,1.7139113,108460.0,108450.0,0.05595688]
[1752032737366,1.9663231,108460.0,108450.0,0.138955]
[1752032737971,1.9663231,108460.0,108450.0,0.05595688]
[1752032739869,1.3388431,108460.0,108450.0,0.13895951]
[1752032740074,1.9662831,108460.0,108450.0,0.13895951]
[1752032740474,1.9662831,108460.0,108450.0,0.05595688]
[1752032741371,1.9662831,108460.0,108450.0,0.01441374]
[1752032741580,0.1843911,108440.0,108430.0,0.14012645]
[1752032741770,1.7262647,108440.0,108430.0,0.14012645]
[1752032742077,1.7884647,108440.0,108430.0,0.00184442]
[1752032742577,1.49893988,108440.0,108430.0,0.00184442]
[1752032742772,1.49993988,108440.0,108430.0,0.00684442]
[1752032743272,1.76993988,108440.0,108430.0,0.00684442]
[1752032743773,1.77093988,108440.0,108430.0,0.00984442]
[1752032743974,2.02335168,108440.0,108430.0,0.00984442]
[1752032744375,2.02335168,108440.0,108430.0,0.09276939]
[1752032745274,2.00708168,108440.0,108430.0,0.09276939]
[1752032745479,2.00708168,108440.0,108430.0,0.08676939]
[1752032746282,1.24984628,108440.0,108430.0,0.08676939]
[1752032746482,2.00708168,108440.0,108430.0,0.14201346]
[1752032746683,2.00708168,108440.0,108430.0,0.05908849]
[1752032747574,1.9966065,108440.0,108430.0,0.05908849]
[1752032748186,1.9966065,108440.0,108430.0,0.10049492]
[1752032748387,2.00698838,108440.0,108430.0,0.10049492]
[1752032748691,1.9966065,108440.0,108430.0,0.10049492]
[1752032749894,1.7441947,108440.0,108430.0,0.10049492]
[1752032750489,1.9966065,108440.0,108430.0,0.10049492]
[1752032753199,1.9966065,108440.0,108430.0,0.05908849]
[1752032753398,1.9966065,108440.0,108430.0,0.11487787]
[1752032755098,1.9966065,108440.0,108430.0,0.0596338]
[1752032759009,1.9966065,108440.0,108430.0,0.04520836]
[1752032759310,1.9966065,108440.0,108430.0,0.05962605]
[1752032764214,1.9966065,108440.0,108430.0,0.11487012]
[1752032764418,1.9966065,108440.0,108430.0,0.05962605]
[1752032765006,1.9966065,108440.0,108430.0,0.11487012]
[1752032767621,0.5263911,108440.0,108430.0,0.07350618]
[1752032767819,1.6839547,108440.0,108430.0,0.33709428]
[1752032768919,1.6840747,108440.0,108430.0,0.33709428]
[1752032769333,1.6840747,108440.0,108430.0,0.42001925]
[1752032769624,1.6840747,108440.0,108430.0,0.42001834]
[1752032770120,1.6840747,108440.0,108430.0,0.36477427]
[1752032770822,0.5497311,108440.0,108430.0,0.36477427]
[1752032771020,1.6850747,108440.0,108430.0,0.36477427]
[1752032771221,1.4850747,108440.0,108430.0,0.36477427]
[1752032771815,0.8545547,108440.0,108430.0,0.36477427]
[1752032772012,0.8704747,108440.0,108430.0,0.36477427]
[1752032772218,1.5009547,108440.0,108430.0,0.36477427]
[1752032773625,1.7209547,108440.0,108430.0,0.18036617]
[1752032774227,1.7409547,108440.0,108430.0,0.18036617]
[1752032775014,1.8064547,108440.0,108430.0,0.16408617]
[1752032775524,1.8688665,108440.0,108430.0,0.10118617]
[1752032776921,1.8688665,108440.0,108430.0,0.15651462]
[1752032777328,1.8688665,108440.0,108430.0,0.07358965]
[1752032778524,1.8688665,108440.0,108430.0,0.15651462]
[1752032778924,1.8688665,108440.0,108430.0,0.10118617]
[1752032779319,1.8688665,108440.0,108430.0,0.10118659]
[1752032779714,1.8688665,108440.0,108430.0,0.01826162]
[1752032780824,1.8688665,108440.0,108430.0,0.10125387]
[1752032781426,1.6164547,108440.0,108430.0,0.01826162]
[1752032781830,1.8688665,108440.0,108430.0,0.01826162]
[1752032782626,1.6164547,108440.0,108430.0,0.01826162]
[1752032784346,1.6164547,108440.0,108430.0,0.01826147]
[1752032785634,1.1116311,108440.0,108430.0,0.01826147]
[1752032785837,1.6164547,108440.0,108430.0,0.01826147]
[1752032786233,1.6164547,108440.0,108430.0,0.10125672]
[1752032786733,1.6157747,108440.0,108430.0,0.10125672]
[1752032792534,1.6157747,108440.0,108430.0,0.28566482]
[1752032792931,1.6157747,108440.0,108430.0,0.30122482]
[1752032793234,0.9859747,108440.0,108430.0,0.11681672]
[1752032793434,0.4156511,108440.0,108430.0,0.33442482]
[1752032793633,1.5499947,108440.0,108430.0,0.64509226]
[1752032793938,1.5499947,108440.0,108430.0,0.39268046]
[1752032794832,1.3599947,108440.0,108430.0,0.39268046]
[1752032795024,1.3599947,108440.0,108430.0,0.28232957]
[1752032795429,1.3599947,108440.0,108430.0,0.39268046]
[1752032796537,1.3599947,108440.0,108430.0,0.28232957]
[1752032799641,0.8551711,108440.0,108430.0,0.28232957]
[1752032799942,0.4547229,108440.0,108430.0,0.66915226]
[1752032800135,0.1863911,108440.0,108430.0,1.15623693]
[1752032800442,0.002,108440.0,108430.0,1.07324137]
[1752032800630,0.002,108440.0,108430.0,1.18359226]
[1752032800833,0.2544118,108440.0,108430.0,1.18359226]
[1752032801141,0.2544118,108440.0,108430.0,1.1838439]
[1752032801341,0.1863911,108440.0,108430.0,1.07324137]
[1752032801640,0.2544118,108440.0,108430.0,1.1838439]
[1752032802233,0.2544118,108440.0,108430.0,1.07324137]
[1752032803036,0.002,108440.0,108430.0,1.18408615]
[1752032803842,0.002,108440.0,108430.0,1.17408615]
[1752032804643,0.002,108440.0,108430.0,0.98964615]
[1752032804833,0.002,108440.0,108430.0,0.87904362]
[1752032805036,0.002,108440.0,108430.0,0.98964615]
[1752032805543,0.002,108440.0,108430.0,1.00964615]
[1752032805842,0.002,108440.0,108430.0,1.14783592]
[1752032806042,0.002,108440.0,108430.0,1.00955389]
[1752032806435,0.002,108440.0,108430.0,0.67955389]
[1752032806643,0.002,108440.0,108430.0,0.98955389]
[1752032808049,0.002,108440.0,108430.0,0.87904362]
[1752032808544,0.002,108440.0,108430.0,0.9895189]
[1752032810946,0.002,108440.0,108430.0,0.87904362]
[1752032811160,0.002,108440.0,108430.0,0.98950555]
[1752032812446,0.2304585,108460.0,108450.0,0.1843742]
[1752032812646,0.2304585,108460.0,108450.0,2.0604553]
[1752032812947,0.2304585,108460.0,108450.0,2.1231553]
[1752032813147,0.49905255,108460.0,108450.0,1.56049741]
[1752032813350,0.2463985,108460.0,108450.0,1.56049741]
[1752032813754,0.2463985,108460.0,108450.0,1.57034918]
[1752032813953,0.2463985,108460.0,108450.0,1.68079841]
[1752032814356,0.2493985,108460.0,108450.0,1.68179841]
[1752032814545,0.2533985,108460.0,108450.0,1.68279841]
[1752032815149,0.2533985,108460.0,108450.0,1.57234918]
[1752032815757,0.50605255,108460.0,108450.0,1.57234918]
[1752032817257,0.50605255,108460.0,108450.0,1.65511465]
[1752032818859,0.2533985,108460.0,108450.0,1.65511465]
[1752032820950,0.50605255,108460.0,108450.0,1.65511465]
[1752032821259,0.2533985,108460.0,108450.0,1.65511465]
[1752032821460,0.2854985,108460.0,108450.0,1.65511465]
[1752032821862,0.3182985,108460.0,108450.0,1.65511465]
[1752032822268,0.57095255,108460.0,108450.0,1.54331288]
[1752032822468,0.59348255,108460.0,108450.0,1.54331288]
[1752032826170,0.59348255,108460.0,108450.0,1.54331258]
[1752032827871,0.57095255,108460.0,108450.0,1.54331258]
[1752032828273,0.57095255,108460.0,108450.0,1.46054711]
[1752032828969,0.82352392,108460.0,108450.0,1.46054711]
[1752032829169,0.82352392,108460.0,108450.0,1.46054685]
[1752032829476,0.82352392,108460.0,108450.0,1.54337641]
[1752032830469,0.82352392,108460.0,108450.0,1.54338856]
[1752032830780,0.82352392,108460.0,108450.0,1.79600127]
[1752032831176,0.82352392,108460.0,108450.0,1.54338856]
[1752032831378,0.82352392,108460.0,108450.0,1.79600127]
[1752032832077,0.82352392,108460.0,108450.0,1.71315956]
[1752032834383,0.57091121,108460.0,108450.0,1.71315956]
[1752032834678,0.57091121,108460.0,108450.0,1.73605956]
[1752032835179,0.57091121,108460.0,108450.0,1.84650879]
[1752032836083,0.57091121,108460.0,108450.0,1.87840879]
[1752032836388,0.47608001,108460.0,108450.0,1.87840879]
[1752032836570,0.44398001,108460.0,108450.0,1.90860879]
[1752032837985,0.44398001,108460.0,108450.0,2.27860879]
[1752032838281,0.44398001,108460.0,108450.0,2.02599608]
[1752032838483,0.44398001,108460.0,108450.0,1.90860879]
[1752032838686,0.45923001,108460.0,108450.0,1.90860879]
[1752032840988,0.44398001,108460.0,108450.0,1.90860879]
[1752032843689,0.69659272,108460.0,108450.0,1.90860879]
[1752032844884,0.69659272,108460.0,108450.0,1.91860879]
[1752032844885,0.44398001,108460.0,108450.0,1.91860879]
[1752032845390,0.44398001,108460.0,108450.0,1.66599608]
[1752032845686,0.71184272,108460.0,108450.0,1.91860879]
[1752032845890,0.71184272,108460.0,108450.0,1.66599608]
[1752032846092,0.74324272,108460.0,108450.0,1.64309608]
[1752032846293,0.77374272,108460.0,108450.0,1.64309608]
[1752032846495,0.77374272,108460.0,108450.0,1.53264685]
[1752032846993,0.79754272,108460.0,108450.0,1.50074685]
[1752032848191,0.77374272,108460.0,108450.0,1.50074685]
[1752032848994,0.77374272,108460.0,108450.0,1.53354685]
[1752032849391,0.2685173,108460.0,108450.0,1.53354685]
[1752032849591,0.77374272,108460.0,108450.0,1.53354685]
[1752032852087,0.77374272,108460.0,108450.0,1.53354661]
[1752032852286,0.75849272,108460.0,108450.0,1.53354661]
[1752032852484,0.77374272,108460.0,108450.0,1.53354661]
[1752032852696,0.77374272,108460.0,108450.0,1.64399584]
[1752032855592,0.77374272,108460.0,108450.0,1.89660855]
[1752032855888,0.75849272,108460.0,108450.0,1.89660855]
[1752032856080,0.77374272,108460.0,108450.0,1.89660855]
[1752032856394,0.77074272,108460.0,108450.0,1.89560855]
[1752032856586,0.76874272,108460.0,108450.0,1.89560855]
[1752032856787,0.77174272,108460.0,108450.0,1.89660855]
[1752032862797,0.2665173,108460.0,108450.0,1.89660855]
[1752032862993,0.77174272,108460.0,108450.0,1.89660855]
[1752032866796,0.77174272,108460.0,108450.0,1.78615932]
[1752032866990,0.77174272,108460.0,108450.0,1.53354661]
[1752032867191,0.77174272,108460.0,108450.0,1.78615932]
[1752032867386,0.77174272,108460.0,108450.0,1.64420739]
[1752032867786,0.77174272,108460.0,108450.0,1.9194901]
[1752032867990,0.77174272,108460.0,108450.0,1.66687739]
[1752032868295,0.77174272,108460.0,108450.0,1.8968201]
[1752032872603,0.77174272,108460.0,108450.0,1.9194901]
[1752032872907,0.77174272,108460.0,108450.0,1.66687739]
[1752032878302,0.77174272,108460.0,108450.0,1.80882932]
[1752032878490,0.77174272,108460.0,108450.0,1.94711135]
[1752032880405,0.77174272,108460.0,108450.0,1.92444135]
[1752032880600,0.77174272,108460.0,108450.0,1.67182864]
[1752032880807,1.41818543,108460.0,108450.0,0.73798844]
[1752032880994,1.40818543,108460.0,108450.0,0.02641241]
[1752032881196,1.40818543,108460.0,108450.0,0.1270993]
[1752032881801,1.40818543,108460.0,108450.0,0.01641241]
[1752032882002,1.40818543,108460.0,108450.0,0.09940944]
[1752032882309,1.40818543,108460.0,108450.0,0.15474207]
[1752032882507,1.40818543,108460.0,108450.0,0.15474491]
[1752032882707,1.40818543,108460.0,108450.0,0.07174788]
[1752032883505,1.40818543,108460.0,108450.0,0.11322568]
[1752032886316,1.40818543,108460.0,108450.0,0.05789305]
[1752032888010,1.40818543,108460.0,108450.0,0.0434778]
[1752032888312,1.40818543,108460.0,108450.0,0.05789314]
[1752032893118,1.42818543,108460.0,108450.0,0.05789314]
[1752032895013,1.42818543,108460.0,108450.0,0.01641534]
[1752032898919,1.23818543,108460.0,108450.0,0.01641534]
[1752032900219,1.19910543,108460.0,108450.0,0.01641534]
[1752032900419,1.22375543,108460.0,108450.0,0.01641534]
[1752032902520,1.22375543,108460.0,108450.0,0.01641531]
[1752032903722,1.19910543,108460.0,108450.0,0.01641531]
[1752032903920,1.22375543,108460.0,108450.0,0.01641531]
[1752032905023,1.22375543,108460.0,108450.0,0.05781773]
[1752032906225,1.22375543,108460.0,108450.0,0.11315036]
[1752032909227,1.22375543,108460.0,108450.0,0.07174794]
[1752032909428,1.22375543,108460.0,108450.0,0.15474497]
[1752032909826,1.22375543,108460.0,108450.0,0.07174794]
[1752032925345,1.22375543,108460.0,108450.0,0.07174772]
[1752032925845,1.85235543,108460.0,108450.0,0.07174772]
[1752032930641,1.85235543,108460.0,108450.0,0.15474475]
[1752032935054,1.85235543,108460.0,108450.0,0.1132605]
[1752032940557,1.85235543,108460.0,108450.0,0.07174772]
[1752032940860,1.85235543,108460.0,108450.0,0.11326133]
[1752032945064,1.85235543,108460.0,108450.0,0.15474475]
[1752032947256,1.85235543,108460.0,108450.0,0.14032966]
[1752032947460,1.85235543,108460.0,108450.0,0.15474475]
[1752032950561,1.85235543,108460.0,108450.0,0.07174772]
[1752032958160,1.85235543,108460.0,108450.0,0.15474475]
[1752032960571,1.0945173,108460.0,108450.0,0.15474475]
[1752032960764,1.85235543,108460.0,108450.0,0.15474475]
[1752032967477,1.85235543,108460.0,108450.0,0.15474476]
[1752032976384,1.82770543,108460.0,108450.0,0.15474476]
[1752032978586,1.85094543,108460.0,108450.0,0.15474476]
[1752032985093,1.85094543,108460.0,108450.0,0.11326316]
[1752032987694,1.85094543,108460.0,108450.0,0.11326342]
[1752032990391,1.85094543,108460.0,108450.0,0.09884806]
[1752032990583,1.85094543,108460.0,108450.0,0.11326341]
[1752032995099,1.85094543,108460.0,108450.0,0.15474501]
[1752032997602,1.85094543,108460.0,108450.0,0.14032966]
[1752032998604,1.85094543,108460.0,108450.0,0.15474505]
[1752033000205,1.0931073,108460.0,108450.0,0.15474505]
[1752033000407,1.85094543,108460.0,108450.0,0.15474505]
[1752033002308,1.85094543,108460.0,108450.0,0.15474492]
[1752033007218,1.85094543,108460.0,108450.0,0.07174789]
[1752033008817,1.85094543,108460.0,108450.0,0.15474492]
[1752033012625,1.85094543,108460.0,108450.0,0.07174789]
[1752033013516,1.85094543,108460.0,108450.0,0.05733263]
[1752033013722,1.85094543,108460.0,108450.0,0.0717479]
[1752033019826,1.85094543,108460.0,108450.0,0.15474493]
[1752033025126,1.85094543,108460.0,108450.0,0.11326308]
[1752033025326,1.85094543,108460.0,108450.0,0.11326309]
[1752033035233,1.85094543,108460.0,108450.0,0.15474494]
[1752033041639,1.85094543,108460.0,108450.0,0.07174791]
[1752033041845,1.85094543,108460.0,108450.0,0.15474494]
[1752033043146,1.0931073,108460.0,108450.0,0.15474494]
[1752033043340,1.85094543,108460.0,108450.0,0.15474494]
[1752033044838,1.0936473,108460.0,108450.0,0.15474494]
[1752033045042,1.59887272,108460.0,108450.0,0.15474494]
[1752033048545,1.57509272,108460.0,108450.0,0.15474494]
[1752033050438,1.59887272,108460.0,108450.0,0.15474494]
[1752033061762,1.59887272,108460.0,108450.0,0.1655564]
[1752033062965,1.59887272,108460.0,108450.0,0.15474494]
[1752033063364,1.59887272,108460.0,108450.0,0.1655564]
[1752033063762,1.85148543,108460.0,108450.0,0.1655564]
[1752033064168,1.85148543,108460.0,108450.0,0.08255937]
[1752033067168,0.1843741,108450.0,108440.0,0.08243703]
[1752033067368,0.1844081,108430.0,108420.0,0.23478578]
[1752033067559,0.1844081,108430.0,108420.0,0.59840274]
[1752033067560,0.43702081,108430.0,108420.0,0.59840274]
[1752033067758,0.43702081,108430.0,108420.0,0.73668477]
[1752033067962,0.43702081,108430.0,108420.0,0.71991467]
[1752033068365,0.43702081,108430.0,108420.0,0.58163264]
[1752033070572,0.43802081,108430.0,108420.0,0.61643264]
[1752033070772,0.47802081,108430.0,108420.0,0.61643264]
[1752033071470,0.47802081,108430.0,108420.0,0.64803264]
[1752033071771,0.48002081,108430.0,108420.0,0.65003264]
[1752033072572,0.54282081,108430.0,108420.0,0.65003264]
[1752033073775,0.54282081,108430.0,108420.0,0.90264535]
[1752033074081,0.50282081,108430.0,108420.0,0.88760535]
[1752033074273,0.54282081,108430.0,108420.0,0.89866535]
[1752033074471,0.54282081,108430.0,108420.0,0.64605264]
[1752033074779,0.89282081,108430.0,108420.0,0.64605264]
[1752033074972,0.89282081,108430.0,108420.0,0.60219264]
[1752033075276,0.89282081,108430.0,108420.0,0.51325264]
[1752033076069,0.89282081,108430.0,108420.0,0.32883274]
[1752033076269,0.79543352,108430.0,108420.0,0.29723274]
[1752033076476,1.17543352,108430.0,108420.0,0.29723274]
[1752033076677,0.86282081,108430.0,108420.0,0.29723274]
[1752033076881,0.54282081,108430.0,108420.0,0.29723274]
[1752033077381,0.86282081,108430.0,108420.0,0.29723274]
[1752033077774,0.91282081,108430.0,108420.0,0.29723274]
[1752033078084,0.85282081,108430.0,108420.0,0.48165784]
[1752033079082,0.85282081,108430.0,108420.0,0.49607506]
[1752033079278,0.85282081,108430.0,108420.0,0.31164996]
[1752033079984,0.85282081,108430.0,108420.0,0.49607506]
[1752033081085,0.61282081,108430.0,108420.0,0.49607506]
[1752033082182,0.61282081,108430.0,108420.0,0.49607513]
[1752033083586,0.3602081,108430.0,108420.0,0.49607513]
[1752033083783,0.61282081,108430.0,108420.0,0.49607513]
[1752033085997,1.24046081,108430.0,108420.0,0.49607513]
[1752033087287,1.24046081,108430.0,108420.0,0.60665748]
[1752033093184,1.52046081,108430.0,108420.0,0.60665748]
[1752033093389,1.17046081,108430.0,108420.0,0.60665748]
[1752033096483,1.50046081,108430.0,108420.0,0.60665748]
[1752033097892,1.25046081,108430.0,108420.0,0.60665748]
[1752033100696,1.24846081,108430.0,108420.0,0.60465748]
[1752033100895,1.25046081,108430.0,108420.0,0.60665748]
[1752033101194,1.52046081,108430.0,108420.0,0.60665748]
[1752033101694,1.52046081,108430.0,108420.0,0.42223238]
[1752033101995,1.52046081,108430.0,108420.0,0.60665748]
[1752033102596,1.25046081,108430.0,108420.0,0.60665748]
[1752033103197,1.17046081,108430.0,108420.0,0.42223238]
[1752033103401,1.42307352,108430.0,108420.0,0.22223238]
[1752033103901,1.80307352,108430.0,108420.0,0.22223238]
[1752033104197,1.80307352,108430.0,108420.0,0.40665748]
[1752033106197,1.80307352,108430.0,108420.0,0.32665748]
[1752033106799,1.80307352,108430.0,108420.0,0.14223238]
[1752033107300,1.80307352,108430.0,108420.0,0.14005964]
[1752033107501,1.80307352,108430.0,108420.0,0.12899964]
[1752033107702,1.80307352,108430.0,108420.0,0.31342474]
[1752033108095,1.80307352,108430.0,108420.0,0.12899964]
[1752033108301,1.80307352,108430.0,108420.0,0.31342474]
[1752033111798,1.55046081,108430.0,108420.0,0.31342474]
[1752033112101,1.80307352,108430.0,108420.0,0.12899964]
[1752033113196,1.80307352,108430.0,108420.0,0.12900026]
[1752033115317,1.80307352,108430.0,108420.0,0.01841791]
[1752033116525,1.80307352,108430.0,108420.0,0.12900026]
[1752033116821,1.2978481,108430.0,108420.0,0.12900026]
[1752033117025,1.80307352,108430.0,108420.0,0.12900026]
[1752033119925,1.80307352,108430.0,108420.0,0.01841791]
[1752033122527,1.80307352,108430.0,108420.0,0.10144915]
[1752033124427,0.87543352,108430.0,108420.0,0.28587425]
[1752033124627,1.52030081,108430.0,108420.0,0.28587425]
[1752033125326,1.52030081,108430.0,108420.0,0.31342536]
[1752033128428,1.17030081,108430.0,108420.0,0.31342536]
[1752033128626,1.24030081,108430.0,108420.0,0.31342536]
[1752033129226,0.61282081,108430.0,108420.0,0.31342536]
[1752033129522,1.49287352,108430.0,108420.0,0.12899984]
[1752033129828,1.77287352,108430.0,108420.0,0.31342494]
[1752033130026,1.42287352,108430.0,108420.0,0.31342494]
[1752033130529,1.77287352,108430.0,108420.0,0.31342494]
[1752033130828,1.50287352,108430.0,108420.0,0.31342494]
[1752033131820,1.49287352,108430.0,108420.0,0.31342494]
[1752033133032,1.76287352,108430.0,108420.0,0.31342494]
[1752033134830,1.42287352,108430.0,108420.0,0.31342494]
[1752033135127,1.50287352,108430.0,108420.0,0.31342494]
[1752033135428,1.42287352,108430.0,108420.0,0.31342494]
[1752033135633,1.78287352,108430.0,108420.0,0.31342494]
[1752033136531,1.50287352,108430.0,108420.0,0.31342494]
[1752033141035,1.42287352,108430.0,108420.0,0.12899984]
[1752033141231,1.74287352,108430.0,108420.0,0.12899984]
[1752033141426,1.42287352,108430.0,108420.0,0.12899984]
[1752033142641,1.42287352,108430.0,108420.0,0.31342494]
[1752033146143,1.75287352,108430.0,108420.0,0.12899984]
[1752033146348,1.42287352,108430.0,108420.0,0.12899984]
[1752033147051,1.42287352,108430.0,108420.0,0.31342494]
[1752033147452,1.77287352,108430.0,108420.0,0.31342494]
[1752033147637,1.42287352,108430.0,108420.0,0.31342494]
[1752033150348,1.38287352,108430.0,108420.0,0.31342494]
[1752033152448,1.40677352,108430.0,108420.0,0.31342494]
[1752033155546,1.76677352,108430.0,108420.0,0.31342494]
[1752033155851,1.76677352,108430.0,108420.0,0.12899984]
[1752033157856,1.47677352,108430.0,108420.0,0.31342504]
[1752033160058,1.40677352,108430.0,108420.0,0.31342504]
[1752033160254,1.74677352,108430.0,108420.0,0.31342504]
[1752033160456,1.74677352,108430.0,108420.0,0.12899985]
[1752033161851,1.40677352,108430.0,108420.0,0.12899985]
[1752033162057,1.48677352,108430.0,108420.0,0.12899985]
[1752033164166,1.76677352,108430.0,108420.0,0.12899985]
[1752033168365,1.2615481,108430.0,108420.0,0.12899985]
[1752033168556,1.48677352,108430.0,108420.0,0.12899985]
[1752033170770,1.40677352,108430.0,108420.0,0.12899985]
[1752033170961,1.48677352,108430.0,108420.0,0.12899985]
[1752033173868,0.9815481,108430.0,108420.0,0.12899985]
[1752033174172,1.50188352,108430.0,108420.0,0.12899985]
[1752033174773,1.50188352,108430.0,108420.0,0.31342495]
[1752033175773,1.50188352,108430.0,108420.0,0.12899985]
[1752033182877,0.9966581,108430.0,108420.0,0.12899985]
[1752033183078,1.50188352,108430.0,108420.0,0.12899985]
[1752033187084,1.50188352,108430.0,108420.0,0.31342495]
[1752033188480,0.62183081,108430.0,108420.0,0.32448495]
[1752033188686,1.16899081,108430.0,108420.0,0.57709766]
[1752033188984,1.16899081,108430.0,108420.0,0.63909766]
[1752033189582,1.16899081,108430.0,108420.0,0.38648495]
[1752033191085,0.54183081,108430.0,108420.0,0.2759026]
[1752033191287,1.16895081,108430.0,108420.0,0.2759026]
[1752033191583,1.16895081,108430.0,108420.0,0.52851531]
[1752033192774,1.16895081,108430.0,108420.0,0.63909766]
[1752033195187,1.16895081,108430.0,108420.0,0.38648495]
[1752033195484,1.16895081,108430.0,108420.0,0.63909766]
[1752033195985,1.16895081,108430.0,108420.0,0.52851531]
[1752033197792,1.16895081,108430.0,108420.0,0.63909766]
[1752033198088,1.16895081,108430.0,108420.0,0.63909702]
[1752033201486,1.16895081,108430.0,108420.0,0.38648431]
[1752033201691,1.16895081,108430.0,108420.0,0.63909702]
[1752033202490,1.16895081,108430.0,108420.0,0.57709702]
[1752033202684,1.16895081,108430.0,108420.0,0.56603702]
[1752033202889,1.16895081,108430.0,108420.0,0.57709702]
[1752033203392,1.16895081,108430.0,108420.0,0.32448431]
[1752033203588,1.16895081,108430.0,108420.0,0.57709702]
[1752033203790,1.16895081,108430.0,108420.0,0.60859702]
[1752033204088,0.003,108430.0,108420.0,1.80828973]
[1752033204285,0.1874081,108430.0,108420.0,1.78071444]
[1752033204485,0.1874081,108430.0,108420.0,1.75060738]
[1752033204682,0.44002081,108430.0,108420.0,1.75060738]
[1752033205293,0.44002081,108430.0,108420.0,1.83359724]
[1752033205495,0.45551081,108430.0,108420.0,1.83359724]
[1752033205692,0.44002081,108430.0,108420.0,1.82253724]
[1752033205993,0.2028981,108430.0,108420.0,1.85253724]
[1752033206595,0.2028981,108430.0,108420.0,1.59992453]
[1752033206795,0.45551081,108430.0,108420.0,1.59992453]
[1752033209199,0.44002081,108430.0,108420.0,1.59992453]
[1752033209399,0.45551081,108430.0,108420.0,1.59992453]
[1752033210199,0.45551081,108430.0,108420.0,1.51693467]
[1752033210804,0.45551081,108430.0,108420.0,1.62751702]
[1752033210997,0.47956081,108430.0,108420.0,1.62751702]
[1752033212304,0.47956081,108430.0,108420.0,1.25751702]
[1752033212808,0.2583481,108430.0,108420.0,1.25751702]
[1752033213105,0.51096081,108430.0,108420.0,1.25751702]
[1752033214003,0.48691081,108430.0,108420.0,1.25751702]
[1752033214803,0.51811081,108430.0,108420.0,1.25751702]
[1752033215402,0.51811081,108430.0,108420.0,1.25751589]
[1752033218306,0.2654981,108430.0,108420.0,1.25751589]
[1752033218505,0.51811081,108430.0,108420.0,1.56751589]
[1752033218909,0.51811081,108430.0,108420.0,1.8201286]
[1752033221404,0.51811081,108430.0,108420.0,1.5101286]
[1752033221605,0.51811081,108430.0,108420.0,1.8801286]
[1752033222107,0.51811081,108430.0,108420.0,1.5101286]
[1752033222411,0.51811081,108430.0,108420.0,1.8301286]
[1752033223312,0.51811081,108430.0,108420.0,1.5101286]
[1752033223512,0.51811081,108430.0,108420.0,1.61751589]
[1752033225016,0.51811081,108430.0,108420.0,1.00490318]
[1752033225208,0.51811081,108430.0,108420.0,1.56751589]
[1752033225408,0.51811081,108430.0,108420.0,1.45693354]
[1752033225817,0.54210081,108430.0,108420.0,1.503155]
[1752033226115,0.51811081,108430.0,108420.0,1.503155]
[1752033226313,0.51811081,108430.0,108420.0,0.94054229]
[1752033226509,0.51811081,108430.0,108420.0,1.514215]
[1752033226709,0.51811081,108430.0,108420.0,1.503155]
[1752033226919,0.50262081,108430.0,108420.0,1.39253354]
[1752033227123,0.51812081,108430.0,108420.0,1.39253354]
[1752033231235,0.51812081,108430.0,108420.0,1.53081557]
[1752033234928,0.51812081,108430.0,108420.0,1.22081557]
[1752033235137,0.54211081,108430.0,108420.0,1.22081557]
[1752033235433,0.54211081,108430.0,108420.0,0.59373557]
[1752033235635,0.54211081,108430.0,108420.0,1.2041853]
[1752033236740,0.54211081,108430.0,108420.0,1.23175557]
[1752033238351,0.54211081,108430.0,108420.0,1.21733984]
[1752033238643,0.54211081,108430.0,108420.0,1.23175562]
[1752033242346,0.50262081,108430.0,108420.0,1.22069562]
[1752033244449,0.54211081,108430.0,108420.0,1.22069562]
[1752033246551,0.54211081,108430.0,108420.0,1.08241359]
[1752033247947,0.51812081,108430.0,108420.0,1.08241359]
[1752033248451,0.51812081,108430.0,108420.0,1.46241359]
[1752033249341,0.51812081,108430.0,108420.0,1.44799781]
[1752033249652,0.2655081,108430.0,108420.0,1.44799781]
[1752033249852,0.51812081,108430.0,108420.0,1.44799781]
[1752033252157,0.51812081,108430.0,108420.0,1.55868696]
[1752033252455,0.51812081,108430.0,108420.0,1.46241396]
[1752033255154,0.51812081,108430.0,108420.0,1.57309825]
[1752033256260,0.51812081,108430.0,108420.0,0.56613825]
[1752033256452,0.51812081,108430.0,108420.0,1.53407825]
[1752033256648,0.51812081,108430.0,108420.0,1.52407825]
[1752033259862,0.50262081,108430.0,108420.0,0.94040554]
[1752033260048,0.51895081,108430.0,108420.0,0.57719825]
[1752033260254,0.51895081,108430.0,108420.0,1.19301825]
[1752033261058,0.51895081,108430.0,108420.0,1.19301844]
[1752033263661,0.54309081,108430.0,108420.0,1.19301844]
[1752033263958,0.54309081,108430.0,108420.0,1.19101844]
[1752033264163,0.54209081,108430.0,108420.0,1.19201844]
[1752033265068,0.2894781,108430.0,108420.0,1.19201844]
[1752033265269,0.54209081,108430.0,108420.0,1.19201844]
[1752033268474,0.50162081,108430.0,108420.0,1.19201844]
[1752033268866,0.50162081,108430.0,108420.0,0.31252573]
[1752033269072,0.50162081,108430.0,108420.0,1.16431499]
[1752033270474,0.54209081,108430.0,108420.0,1.16431499]
[1752033271775,0.54209081,108430.0,108420.0,1.08129415]
[1752033272574,0.54209081,108430.0,108420.0,0.20184154]
[1752033272870,0.54209081,108430.0,108420.0,0.83974154]
[1752033273077,0.54209081,108430.0,108420.0,0.82868154]
[1752033273266,0.6694781,108430.0,108420.0,0.82868154]
[1752033273470,0.90209081,108430.0,108420.0,0.82868154]
[1752033273665,0.54209081,108430.0,108420.0,0.20184154]
[1752033273877,0.91209081,108430.0,108420.0,0.82868154]
[1752033274077,0.87209081,108430.0,108420.0,0.82868154]
[1752033274372,0.54209081,108430.0,108420.0,0.82868154]
[1752033274577,0.62209081,108430.0,108420.0,0.82868154]
[1752033275079,0.62209081,108430.0,108420.0,0.31252583]
[1752033275278,0.62209081,108430.0,108420.0,0.93936583]
[1752033275680,0.62209081,108430.0,108420.0,0.31252583]
[1752033275876,0.62209081,108430.0,108420.0,0.93936583]
[1752033276278,0.62209081,108430.0,108420.0,0.31252583]